fUST/lending_fUST_20240721
["ID","MTS","AMOUNT","RATE_DAILY","PERIOD"]
[332770976,1721511048565,-932.46,0.00013972,2]
[332770977,1721511048575,-500.0,0.00013972,2]
[332770978,1721511048585,-500.0,0.00013972,2]
[332770979,1721511048594,-548.79,0.00013972,2]
[332770980,1721511048605,-3831.1,0.00013972,2]
[332770981,1721511048614,-604.16,0.00013972,2]
[332770982,1721511048624,-500.0,0.00013972,2]
[332770983,1721511048634,-522.98,0.00013972,2]
[332770984,1721511048644,-605.13,0.00013972,2]
[332770985,1721511048654,-2118.41,0.00013972,2]
[332770986,1721511048664,-2231.09,0.00013972,2]
[332770987,1721511048674,-500.0,0.00013972,2]
[332770988,1721511048684,-872.61,0.00013972,2]
[332770989,1721511048694,-500.0,0.00013972,2]
[332770990,1721511048704,-1579.55,0.00013972,2]
[332770991,1721511048714,-500.0,0.00013972,2]
[332770992,1721511048723,-562.72,0.00013972,2]
[332770993,1721511048733,-500.0,0.00013972,2]
[332770994,1721511048743,-538.57,0.00013972,2]
[332770995,1721511048752,-776.76,0.00013972,2]
[332770996,1721511048761,-500.0,0.00013972,2]
[332770997,1721511048772,-500.0,0.00013972,2]
[332770998,1721511048781,-1928.35,0.00013972,2]
[332770999,1721511048791,-500.0,0.00013972,2]
[332771000,1721511048801,-500.0,0.00013972,2]
[332771001,1721511048811,-500.0,0.00013972,2]
[332771002,1721511048822,-8367.53,0.00013972,2]
[332771003,1721511048831,-500.0,0.00013972,2]
[332771004,1721511048842,-500.0,0.00013972,2]
[332771005,1721511048851,-4825.35,0.00013972,2]
[332771006,1721511048862,-501.52214706,0.00013972,2]
[332771007,1721511048877,-642.89,0.00013972,2]
[332771008,1721511048887,-2472.19,0.00013972,2]
[332771009,1721511048897,-657.62,0.00013972,2]
[332771010,1721511048907,-551.83,0.00013972,2]
[332771011,1721511048917,-500.0,0.00013972,2]
[332771012,1721511048930,-500.0,0.00013972,2]
[332771013,1721511048940,-1374.85,0.00013972,2]
[332771014,1721511048952,-500.0,0.00013972,2]
[332771015,1721511048962,-500.0,0.00013972,2]
[332771016,1721511048973,-2128.3,0.00013972,2]
[332771017,1721511048983,-500.0,0.00013972,2]
[332771018,1721511048995,-2356.89,0.00013972,2]
[332771019,1721511049005,-1207.82,0.00013972,2]
[332771020,1721511049015,-1046.18,0.00013972,2]
[332771021,1721511049026,-500.0,0.00013972,2]
[332771022,1721511049037,-500.0,0.00013972,2]
[332771023,1721511049047,-597.26,0.00013972,2]
[332771024,1721511049056,-500.0,0.00013972,2]
[332771025,1721511049067,-571.85,0.00013972,2]
[332771026,1721511049076,-500.0,0.00013972,2]
[332771027,1721511049086,-500.0,0.00013972,2]
[332771028,1721511049097,-615.04,0.00013972,2]
[332771029,1721511049108,-626.91,0.00013972,2]
[332771030,1721511049117,-1448.56,0.00013972,2]
[332771031,1721511049127,-540.77,0.00013972,2]
[332771032,1721511049137,-500.0,0.00013972,2]
[332771033,1721511049147,-983.71,0.00013972,2]
[332771034,1721511049157,-500.0,0.00013972,2]
[332771035,1721511049167,-995.06,0.00013972,2]
[332771036,1721511049177,-3527.45,0.00013972,2]
[332771037,1721511049188,-535.89,0.00013972,2]
[332771038,1721511049198,-15735.2,0.00013972,2]
[332771039,1721511049208,-4244.03,0.00013972,2]
[332771040,1721511049218,-500.0,0.00013972,2]
[332771041,1721511049229,-453.62559309,0.00013972,2]
[332771042,1721511049239,-500.0,0.00013972,2]
[332771043,1721511049249,-500.0,0.00013972,2]
[332771044,1721511049258,-10248.99,0.00013972,2]
[332771045,1721511049269,-500.0,0.00013972,2]
[332771046,1721511049280,-1739.54,0.00013972,2]
[332771047,1721511049290,-500.0,0.00013972,2]
[332771048,1721511049300,-500.0,0.00013972,2]
[332771049,1721511049310,-503.08165892,0.00013972,2]
[332771050,1721511049320,-1306.26,0.00013972,2]
[332771051,1721511049331,-1256.37,0.00013972,2]
[332771052,1721511049343,-500.0,0.00013972,2]
[332771053,1721511049352,-2472.96,0.00013972,2]
[332771054,1721511049362,-1056.64,0.00013972,2]
[332771055,1721511049372,-2679.42,0.00013972,2]
[332771056,1721511049381,-1896.75,0.00013972,2]
[332771057,1721511049390,-1810.99,0.00013972,2]
[332771058,1721511049401,-500.0,0.00013972,2]
[332771059,1721511049411,-500.0,0.00013972,2]
[332771060,1721511049420,-791.0,0.00013972,2]
[332771061,1721511049430,-500.0,0.00013972,2]
[332771062,1721511049440,-800.31,0.00013972,2]
[332771063,1721511049449,-2416.48,0.00013972,2]
[332771064,1721511049459,-500.0,0.00013972,2]
[332771065,1721511049469,-533.97409384,0.00013972,2]
[332771066,1721511049480,-4600.07,0.00013972,2]
[332771067,1721511049491,-687.59,0.00013972,2]
[332771068,1721511049503,-500.0,0.00013972,2]
[332771069,1721511049514,-500.0,0.00013972,2]
[332771070,1721511049523,-500.0,0.00013972,2]
[332771071,1721511049534,-2904.58,0.00013972,2]
[332771072,1721511049543,-1061.7,0.00013972,2]
[332771073,1721511049553,-500.0,0.00013972,2]
[332771074,1721511049562,-2896.89,0.00013972,2]
[332771075,1721511049576,-500.0,0.00013972,2]
[332771076,1721511049585,-500.0,0.00013972,2]
[332771077,1721511049595,-503.63206823,0.00013972,2]
[332771078,1721511049604,-500.0,0.00013972,2]
[332771079,1721511049613,-1421.92,0.00013972,2]
[332771080,1721511049623,-1013.9,0.00013972,2]
[332771081,1721511049633,-502.54970071,0.00013972,2]
[332771082,1721511049642,-500.0,0.00013972,2]
[332771083,1721511049653,-500.0,0.00013972,2]
[332771084,1721511049662,-832.89,0.00013972,2]
[332771085,1721511049673,-850.96,0.00013972,2]
[332771086,1721511049683,-500.0,0.00013972,2]
[332771087,1721511049694,-500.0,0.00013972,2]
[332771088,1721511049705,-500.0,0.00013972,2]
[332771089,1721511049715,-1089.8,0.00013972,2]
[332771090,1721511049725,-500.0,0.00013972,2]
[332771091,1721511049734,-500.0,0.00013972,2]
[332771092,1721511049744,-500.0,0.00013972,2]
[332771093,1721511049754,-639.12,0.00013972,2]
[332771094,1721511049764,-1971.06,0.00013972,2]
[332771095,1721511049775,-500.0,0.00013972,2]
[332771096,1721511049784,-2906.83,0.00013972,2]
[332771097,1721511049794,-1471.9,0.00013972,2]
[332771098,1721511049803,-2402.51,0.00013972,2]
[332771099,1721511049812,-500.0,0.00013972,2]
[332771100,1721511049824,-500.0,0.00013972,2]
[332771101,1721511049834,-820.39,0.00013972,2]
[332771102,1721511049845,-500.0,0.00013972,2]
[332771103,1721511049855,-500.0,0.00013972,2]
[332771104,1721511049868,-1227.14,0.00013972,2]
[332771105,1721511049878,-1360.19,0.00013972,2]
[332771106,1721511049887,-500.0,0.00013972,2]
[332771107,1721511049897,-500.0,0.00013972,2]
[332771108,1721511049907,-12539.83,0.00013972,2]
[332771109,1721511049918,-500.0,0.00013972,2]
[332771110,1721511049928,-1035.9,0.00013972,2]
[332771111,1721511049940,-500.0,0.00013972,2]
[332771112,1721511049950,-2198.38,0.00013972,2]
[332771113,1721511049959,-1196.4,0.00013972,2]
[332771114,1721511049968,-500.0,0.00013972,2]
[332771115,1721511049977,-500.0,0.00013972,2]
[332771116,1721511049987,-1336.62,0.00013972,2]
[332771117,1721511049996,-500.0,0.00013972,2]
[332771118,1721511050005,-183.21500843,0.00013972,2]
[332771119,1721511050015,-500.0,0.00013972,2]
[332771120,1721511050025,-500.0,0.00013972,2]
[332771121,1721511050034,-500.0,0.00013972,2]
[332771122,1721511050044,-500.0,0.00013972,2]
[332771123,1721511050053,-568.38256445,0.00013972,2]
[332771124,1721511050062,-8495.04,0.00013972,2]
[332771125,1721511050072,-500.0,0.00013972,2]
[332771126,1721511050082,-2229.03,0.00013972,2]
[332771127,1721511050092,-500.0,0.00013972,2]
[332771128,1721511050102,-1040.79,0.00013972,2]
[332771129,1721511050111,-500.0,0.00013972,2]
[332771130,1721511050122,-500.0,0.00013972,2]
[332771131,1721511050132,-29327.67,0.00013972,2]
[332771132,1721511050142,-2777.37,0.00013972,2]
[332771133,1721511050151,-559.68,0.00013972,2]
[332771134,1721511050161,-500.0,0.00013972,2]
[332771135,1721511050170,-500.0,0.00013972,2]
[332771136,1721511050180,-500.0,0.00013972,2]
[332771137,1721511050190,-150.112233,0.00014,4]
[332771138,1721511050200,-150.112233,0.00014,5]
[332771139,1721511050210,-150.112233,0.00014,2]
[332771140,1721511050220,-154.9094073,0.00014,2]
[332771141,1721511050230,-3325.37278306,0.00014084,2]
[332771142,1721511050239,-150.112233,0.000141,5]
[332771143,1721511050249,-150.112233,0.000141,3]
[332771144,1721511050259,-150.112233,0.000141,2]
[332771145,1721511050269,-150.112233,0.000142,4]
[332771146,1721511050279,-150.112233,0.000142,4]
[332771147,1721511050289,-500.0,0.00014246,2]
[332771148,1721511050299,-643.38,0.00014246,2]
[332771149,1721511050309,-653.87,0.00014246,2]
[332771150,1721511050319,-627.46,0.00014246,2]
[332771151,1721511050329,-840.32,0.00014246,2]
[332771152,1721511050339,-500.0,0.00014246,2]
[332771153,1721511050348,-500.0,0.00014246,2]
[332771154,1721511050358,-500.0,0.00014246,2]
[332771155,1721511050368,-539.67,0.00014246,2]
[332771156,1721511050377,-500.0,0.00014246,2]
[332771157,1721511050387,-787.39,0.00014246,2]
[332771158,1721511050397,-500.0,0.00014246,2]
[332771159,1721511050407,-500.0,0.00014246,2]
[332771160,1721511050418,-500.0,0.00014246,2]
[332771161,1721511050430,-925.93,0.00014246,2]
[332771162,1721511050441,-500.0,0.00014246,2]
[332771163,1721511050451,-310.27563347,0.00014246,2]
[332771164,1721511050462,-528.53,0.00014246,2]
[332771165,1721511050472,-500.0,0.00014246,2]
[332771166,1721511050483,-500.0,0.00014246,2]
[332771167,1721511050493,-500.0,0.00014246,2]
[332771168,1721511050503,-500.0,0.00014246,2]
[332771169,1721511050513,-500.0,0.00014246,2]
[332771170,1721511050523,-500.0,0.00014246,2]
[332771171,1721511050532,-500.0,0.00014246,2]
[332771172,1721511050542,-500.0,0.00014246,2]
[332771173,1721511050552,-500.0,0.00014246,2]
[332771174,1721511050562,-500.0,0.00014246,2]
[332771175,1721511050572,-500.0,0.00014246,2]
[332771176,1721511050582,-721.14,0.00014246,2]
[332771177,1721511050592,-574.91,0.00014246,2]
[332771178,1721511050601,-500.0,0.00014246,2]
[332771179,1721511050611,-500.0,0.00014246,2]
[332771180,1721511050620,-500.0,0.00014246,2]
[332771181,1721511050630,-500.0,0.00014246,2]
[332771182,1721511050640,-500.0,0.00014246,2]
[332771183,1721511050649,-500.0,0.00014246,2]
[332771184,1721511050659,-500.0,0.00014246,2]
[332771185,1721511050668,-500.0,0.00014246,2]
[332771186,1721511050678,-500.0,0.00014246,2]
[332771187,1721511050688,-351.71501332,0.00014246,2]
[332771188,1721511050698,-1696.95,0.00014246,2]
[332771189,1721511050708,-500.0,0.00014246,2]
[332771190,1721511050718,-500.0,0.00014246,2]
[332771191,1721511050728,-500.0,0.00014246,2]
[332771192,1721511050738,-500.0,0.00014246,2]
[332771193,1721511050748,-511.77,0.00014246,2]
[332771194,1721511050757,-500.0,0.00014246,2]
[332771195,1721511050768,-500.0,0.00014246,2]
[332771196,1721511050778,-655.48,0.00014246,2]
[332771197,1721511050787,-500.0,0.00014246,2]
[332771198,1721511050797,-500.0,0.00014246,2]
[332771199,1721511050806,-500.0,0.00014246,2]
[332771200,1721511050817,-1385.14,0.00014246,2]
[332771201,1721511050826,-527.71,0.00014246,2]
[332771202,1721511050835,-500.0,0.00014246,2]
[332771203,1721511050846,-1739.63,0.00014246,2]
[332771204,1721511050856,-500.0,0.00014246,2]
[332771205,1721511050867,-661.35,0.00014246,2]
[332771206,1721511050877,-2664.89,0.00014246,2]
[332771207,1721511050886,-500.0,0.00014246,2]
[332771208,1721511050896,-2483.74,0.00014246,2]
[332771209,1721511050907,-500.0,0.00014246,2]
[332771210,1721511050917,-710.92,0.00014246,2]
[332771211,1721511050927,-500.0,0.00014246,2]
[332771212,1721511050936,-500.0,0.00014246,2]
[332771213,1721511050947,-797.75,0.00014246,2]
[332771214,1721511050956,-500.0,0.00014246,2]
[332771215,1721511050965,-500.0,0.00014246,2]
[332771216,1721511050975,-1121.73,0.00014246,2]
[332771217,1721511050984,-982.38,0.00014246,2]
[332771218,1721511050994,-523.88,0.00014246,2]
[332771219,1721511051003,-938.39,0.00014246,2]
[332771220,1721511051013,-500.0,0.00014246,2]
[332771221,1721511051022,-562.97,0.00014246,2]
[332771222,1721511051031,-500.0,0.00014246,2]
[332771223,1721511051042,-500.0,0.00014246,2]
[332771224,1721511051052,-1747.81,0.00014246,2]
[332771225,1721511051061,-948.41,0.00014246,2]
[332771226,1721511051071,-500.0,0.00014246,2]
[332771227,1721511051081,-500.0,0.00014246,2]
[332771228,1721511051091,-500.0,0.00014246,2]
[332771229,1721511051100,-500.0,0.00014246,2]
[332771230,1721511051110,-564.72,0.00014246,2]
[332771231,1721511051120,-500.0,0.00014246,2]
[332771232,1721511051131,-500.0,0.00014246,2]
[332771233,1721511051142,-3488.43,0.00014246,2]
[332771234,1721511051153,-500.0,0.00014246,2]
[332771235,1721511051165,-500.0,0.00014246,2]
[332771236,1721511051175,-500.0,0.00014246,2]
[332771237,1721511051186,-500.0,0.00014246,2]
[332771238,1721511051197,-1240.03,0.00014246,2]
[332771239,1721511051208,-582.80298837,0.00014246,2]
[332771240,1721511051219,-500.0,0.00014246,2]
[332771241,1721511051230,-719.99,0.00014246,2]
[332771242,1721511051240,-500.0,0.00014246,2]
[332771243,1721511051251,-635.31,0.00014246,2]
[332771244,1721511051262,-500.0,0.00014246,2]
[332771245,1721511051274,-500.0,0.00014246,2]
[332771246,1721511051285,-661.58,0.00014246,2]
[332771247,1721511051296,-512.82091932,0.00014246,2]
[332771248,1721511051305,-516.38,0.00014246,2]
[332771249,1721511051314,-720.83,0.00014246,2]
[332771250,1721511051325,-657.94,0.00014246,2]
[332771251,1721511051335,-500.0,0.00014246,2]
[332771252,1721511051345,-500.0,0.00014246,2]
[332771253,1721511051354,-562.63316697,0.00014246,2]
[332771254,1721511051364,-500.0,0.00014246,2]
[332771255,1721511051375,-1031.15,0.00014246,2]
[332771256,1721511051384,-641.37526896,0.00014246,2]
[332771257,1721511051394,-500.0,0.00014246,2]
[332771258,1721511051404,-500.0,0.00014246,2]
[332771259,1721511051414,-157.78037707,0.00014246,2]
[332771260,1721511051423,-500.0,0.00014246,2]
[332771261,1721511051434,-601.67470916,0.00014246,2]
[332771262,1721511051444,-153.52,0.00014246,2]
[332771263,1721511051454,-500.0,0.00014246,2]
[332771264,1721511051465,-803.99,0.00014246,2]
[332771265,1721511051474,-500.0,0.00014246,2]
[332771266,1721511051484,-516.51303496,0.00014246,2]
[332771267,1721511051493,-500.0,0.00014246,2]
[332771268,1721511051506,-675.6,0.00014246,2]
[332771269,1721511051515,-500.0,0.00014246,2]
[332771270,1721511051525,-500.0,0.00014246,2]
[332771271,1721511051535,-874.51,0.00014246,2]
[332771272,1721511051546,-1068.75,0.00014246,2]
[332771273,1721511051555,-500.0,0.00014246,2]
[332771274,1721511051567,-500.0,0.00014246,2]
[332771275,1721511051576,-500.0,0.00014246,2]
[332771276,1721511051586,-500.0,0.00014246,2]
[332771277,1721511051596,-500.0,0.00014246,2]
[332771278,1721511051605,-2270.29,0.00014246,2]
[332771279,1721511051616,-714.63,0.00014246,2]
[332771280,1721511051626,-500.0,0.00014246,2]
[332771281,1721511051636,-500.0,0.00014246,2]
[332771282,1721511051646,-500.0,0.00014246,2]
[332771283,1721511051657,-500.0,0.00014246,2]
[332771284,1721511051668,-2247.99,0.00014246,2]
[332771285,1721511051679,-500.0,0.00014246,2]
[332771286,1721511051688,-500.0,0.00014246,2]
[332771287,1721511051699,-500.0,0.00014246,2]
[332771288,1721511051709,-500.0,0.00014246,2]
[332771289,1721511051720,-500.0,0.00014246,2]
[332771290,1721511051730,-1423.72,0.00014246,2]
[332771291,1721511051741,-500.0,0.00014246,2]
[332771292,1721511051752,-500.0,0.00014246,2]
[332771293,1721511051763,-1571.5,0.00014246,2]
[332771294,1721511051773,-507.40824382,0.00014246,2]
[332771295,1721511051785,-315.09393361,0.00014246,2]
[332771296,1721511051795,-500.0,0.00014246,2]
[332771297,1721511051806,-500.0,0.00014246,2]
[332771298,1721511051817,-500.0,0.00014246,2]
[332771299,1721511051826,-371.21872969,0.00014246,2]
[332771300,1721511051836,-721.02,0.00014246,2]
[332771301,1721511051846,-500.0,0.00014246,2]
[332771302,1721511051856,-500.0,0.00014246,2]
[332771303,1721511051866,-500.0,0.00014246,2]
[332771304,1721511051878,-500.0,0.00014246,2]
[332771305,1721511051890,-500.0,0.00014246,2]
[332771306,1721511051902,-500.0,0.00014246,2]
[332771307,1721511051914,-500.0,0.00014246,2]
[332771308,1721511051924,-500.0,0.00014246,2]
[332771309,1721511051934,-500.0,0.00014246,2]
[332771310,1721511051943,-500.0,0.00014246,2]
[332771311,1721511051953,-1686.14,0.00014246,2]
[332771312,1721511051964,-500.0,0.00014246,2]
[332771313,1721511051973,-1159.54,0.00014246,2]
[332771314,1721511051982,-739.55,0.00014246,2]
[332771315,1721511051992,-1621.57,0.00014246,2]
[332771316,1721511052002,-1089.53,0.00014246,2]
[332771317,1721511052012,-500.0,0.00014246,2]
[332771318,1721511052021,-520.8514786,0.00014246,2]
[332771319,1721511052031,-500.0,0.00014246,2]
[332771320,1721511052040,-1412.33,0.00014246,2]
[332771321,1721511052050,-500.0,0.00014246,2]
[332771322,1721511052059,-500.0,0.00014246,2]
[332771323,1721511052068,-598.46,0.00014246,2]
[332771324,1721511052079,-500.0,0.00014246,2]
[332771325,1721511052089,-1405.9,0.00014246,2]
[332771326,1721511052099,-499.99859316,0.00014246,2]
[332771327,1721511052109,-500.0,0.00014246,2]
[332771328,1721511052119,-748.03,0.00014246,2]
[332771329,1721511052129,-500.0,0.00014246,2]
[332771330,1721511052139,-500.0,0.00014246,2]
[332771331,1721511052148,-2040.11,0.00014246,2]
[332771332,1721511052158,-621.48,0.00014246,2]
[332771333,1721511052168,-500.0,0.00014246,2]
[332771334,1721511052178,-856.47,0.00014246,2]
[332771335,1721511052187,-557.85,0.00014246,2]
[332771336,1721511052197,-500.0,0.00014246,2]
[332771337,1721511052207,-766.87,0.00014246,2]
[332771338,1721511052218,-500.0,0.00014246,2]
[332771339,1721511052228,-805.64,0.00014246,2]
[332771340,1721511052238,-520.44,0.00014246,2]
[332771341,1721511052248,-600.22657191,0.00014246,2]
[332771342,1721511052257,-500.0,0.00014246,2]
[332771343,1721511052267,-500.0,0.00014246,2]
[332771344,1721511052278,-1222.27,0.00014246,2]
[332771345,1721511052288,-500.0,0.00014246,2]
[332771346,1721511052298,-2977.85,0.00014246,2]
[332771347,1721511052309,-500.0,0.00014246,2]
[332771348,1721511052319,-500.0,0.00014246,2]
[332771349,1721511052330,-1162.5,0.00014246,2]
[332771350,1721511052515,-1667.71,0.00014246,2]
[332771351,1721511052525,-1824.35,0.00014246,2]
[332771352,1721511052534,-2053.74,0.00014246,2]
[332771353,1721511052544,-500.0,0.00014246,2]
[332771354,1721511052553,-632.86,0.00014246,2]
[332771355,1721511052562,-1040.05,0.00014246,2]
[332771356,1721511052572,-511.02301535,0.00014246,2]
[332771357,1721511052582,-1968.82,0.00014246,2]
[332771358,1721511052591,-367.30137337,0.00014246,2]
[332771359,1721511052601,-500.0,0.00014246,2]
[332771360,1721511052610,-4968.92,0.00014246,2]
[332771361,1721511052620,-500.0,0.00014246,2]
[332771362,1721511052630,-3052.09,0.00014246,2]
[332771363,1721511052640,-6984.72,0.00014246,2]
[332771364,1721511052649,-500.0,0.00014246,2]
[332771365,1721511052658,-237.48528334,0.00014246,2]
[332771366,1721511052667,-640.29,0.00014246,2]
[332771367,1721511052677,-552.15,0.00014246,2]
[332771368,1721511052686,-500.0,0.00014246,2]
[332771369,1721511052696,-500.0,0.00014246,2]
[332771370,1721511052708,-932.46,0.00014246,2]
[332771371,1721511052719,-500.0,0.00014246,2]
[332771372,1721511052730,-500.0,0.00014246,2]
[332771373,1721511052740,-548.79,0.00014246,2]
[332771374,1721511052751,-3831.1,0.00014246,2]
[332771375,1721511052762,-604.16,0.00014246,2]
[332771376,1721511052771,-500.0,0.00014246,2]
[332771377,1721511052781,-522.98,0.00014246,2]
[332771378,1721511052791,-2118.41,0.00014246,2]
[332771379,1721511052801,-605.13,0.00014246,2]
[332771380,1721511052810,-500.0,0.00014246,2]
[332771381,1721511052820,-2231.09,0.00014246,2]
[332771382,1721511052830,-872.61,0.00014246,2]
[332771383,1721511052840,-521.4783236,0.00014246,2]
[332771384,1721511052851,-1579.55,0.00014246,2]
[332771385,1721511052861,-500.0,0.00014246,2]
[332771386,1721511052874,-562.72,0.00014246,2]
[332771387,1721511052886,-500.0,0.00014246,2]
[332771388,1721511052896,-538.57,0.00014246,2]
[332771389,1721511052906,-776.76,0.00014246,2]
[332771390,1721511052916,-500.0,0.00014246,2]
[332771391,1721511052927,-1928.35,0.00014246,2]
[332771392,1721511052936,-500.0,0.00014246,2]
[332771393,1721511052947,-500.0,0.00014246,2]
[332771394,1721511052957,-500.0,0.00014246,2]
[332771395,1721511052967,-8367.53,0.00014246,2]
[332771396,1721511052976,-500.0,0.00014246,2]
[332771397,1721511052987,-4825.35,0.00014246,2]
[332771398,1721511052996,-500.0,0.00014246,2]
[332771399,1721511053007,-642.89,0.00014246,2]
[332771400,1721511053017,-2472.19,0.00014246,2]
[332771401,1721511053027,-657.62,0.00014246,2]
[332771402,1721511053036,-551.83,0.00014246,2]
[332771403,1721511053046,-500.0,0.00014246,2]
[332771404,1721511053056,-500.0,0.00014246,2]
[332771405,1721511053066,-1374.85,0.00014246,2]
[332771406,1721511053077,-500.0,0.00014246,2]
[332771407,1721511053087,-500.0,0.00014246,2]
[332771408,1721511053097,-2128.3,0.00014246,2]
[332771409,1721511053108,-500.0,0.00014246,2]
[332771410,1721511053118,-2356.89,0.00014246,2]
[332771411,1721511053128,-1207.82,0.00014246,2]
[332771412,1721511053139,-1046.18,0.00014246,2]
[332771413,1721511053149,-500.0,0.00014246,2]
[332771414,1721511053160,-500.0,0.00014246,2]
[332771415,1721511053170,-597.26,0.00014246,2]
[332771416,1721511053180,-500.0,0.00014246,2]
[332771417,1721511053191,-571.85,0.00014246,2]
[332771418,1721511053202,-500.0,0.00014246,2]
[332771419,1721511053211,-500.0,0.00014246,2]
[332771420,1721511053222,-615.04,0.00014246,2]
[332771421,1721511053234,-626.91,0.00014246,2]
[332771422,1721511053244,-1448.56,0.00014246,2]
[332771423,1721511053255,-540.77,0.00014246,2]
[332771424,1721511053265,-983.71,0.00014246,2]
[332771425,1721511053276,-995.06,0.00014246,2]
[332771426,1721511053286,-3527.45,0.00014246,2]
[332771427,1721511053297,-535.89,0.00014246,2]
[332771428,1721511053307,-15735.2,0.00014246,2]
[332771429,1721511053319,-4244.03,0.00014246,2]
[332771430,1721511053330,-500.0,0.00014246,2]
[332771431,1721511053340,-500.0,0.00014246,2]
[332771432,1721511053351,-10248.99,0.00014246,2]
[332771433,1721511053361,-500.0,0.00014246,2]
[332771434,1721511053372,-1739.54,0.00014246,2]
[332771435,1721511053382,-500.0,0.00014246,2]
[332771436,1721511053392,-500.0,0.00014246,2]
[332771437,1721511053402,-1306.26,0.00014246,2]
[332771438,1721511053412,-500.0,0.00014246,2]
[332771439,1721511053422,-1256.37,0.00014246,2]
[332771440,1721511053432,-2472.96,0.00014246,2]
[332771441,1721511053442,-1056.64,0.00014246,2]
[332771442,1721511053451,-2679.42,0.00014246,2]
[332771443,1721511053461,-1896.75,0.00014246,2]
[332771444,1721511053472,-1810.99,0.00014246,2]
[332771445,1721511053483,-500.0,0.00014246,2]
[332771446,1721511053493,-500.0,0.00014246,2]
[332771447,1721511053504,-791.0,0.00014246,2]
[332771448,1721511053515,-500.0,0.00014246,2]
[332771449,1721511053525,-800.31,0.00014246,2]
[332771450,1721511053534,-2416.48,0.00014246,2]
[332771451,1721511053544,-500.0,0.00014246,2]
[332771452,1721511053554,-4600.07,0.00014246,2]
[332771453,1721511053565,-687.59,0.00014246,2]
[332771454,1721511053577,-500.0,0.00014246,2]
[332771455,1721511053587,-500.0,0.00014246,2]
[332771456,1721511053599,-2904.58,0.00014246,2]
[332771457,1721511053609,-1061.7,0.00014246,2]
[332771458,1721511053621,-500.0,0.00014246,2]
[332771459,1721511053631,-2896.89,0.00014246,2]
[332771460,1721511053641,-500.0,0.00014246,2]
[332771461,1721511053650,-500.0,0.00014246,2]
[332771462,1721511053661,-500.0,0.00014246,2]
[332771463,1721511053672,-1421.92,0.00014246,2]
[332771464,1721511053682,-1013.9,0.00014246,2]
[332771465,1721511053694,-307.19556289,0.00014246,2]
[332771466,1721511053703,-500.0,0.00014246,2]
[332771467,1721511053713,-832.89,0.00014246,2]
[332771468,1721511053723,-850.96,0.00014246,2]
[332771469,1721511053732,-500.0,0.00014246,2]
[332771470,1721511053741,-500.0,0.00014246,2]
[332771471,1721511053753,-500.0,0.00014246,2]
[332771472,1721511053763,-1089.8,0.00014246,2]
[332771473,1721511053773,-500.0,0.00014246,2]
[332771474,1721511053783,-337.62634337,0.00014246,2]
[332771475,1721511053793,-500.0,0.00014246,2]